Cogmind - Beta 13 @@@ ROGUE MODE // 2024.07.18 @ 12:15:08 Player: Blaj Result: Destroyed by DAS Turret with DAS Cannon Performance ------------- Evolutions (1) 500 Regions Visited (5) 1000 Robots Destroyed (89) 445 Value Destroyed (2107) 2107 Prototype IDs (38) 760 Alien Tech Used (0) 0 Bonus (477) 477 TOTAL SCORE: 5289 Bonus ------- High Alert Combat Kills 177 Aligned with FarCom 300 Cogmind --------- Core Integrity 0/400 Matter 43/300 Energy 99/100 System Corruption 0% Temperature Cool (3) Movement Flying (34) Location -9/Exiles Parts ------- > --- POWER (1) -------- (None) > --- PROPULSION (3) --- Improved Flight Unit Improved Flight Unit Improved Flight Unit > --- UTILITY (2) ------ Experimental Targeting Computer > --- WEAPON (3) ------- Improved Grenade Launcher > --- INVENTORY (5) ---- Light Treads Potential Leg Potential Leg Advanced Weapon Cycler Heavy EM Pulse Gun Peak State ------------ > --- POWER ------------ Deuterium Engine > --- PROPULSION ------- Light Treads Potential Leg Potential Leg > --- UTILITY ---------- Experimental Targeting Computer Hardlight Generator > --- WEAPON ----------- Heavy Assault Rifle Improved Grenade Launcher > --- INVENTORY -------- Advanced Weapon Cycler Autogun [Rating: 39] Favorites ----------- Power Deuterium Engine Engine Deuterium Engine Power Core Light Nuclear Core Propulsion Light Treads Treads Light Treads Leg Potential Leg Flight Unit Improved Flight Unit Utility Seismic Detector Device Seismic Detector Storage Huge Storage Unit Processor Experimental Targeting Computer Protection Light Armor Plating Weapon Heavy Assault Rifle Energy Gun EM Pulse Gun Energy Cannon Beam Cannon Ballistic Gun Heavy Assault Rifle Ballistic Cannon Light Cannon Launcher Improved Grenade Launcher Special Weapon Mining Laser Special Melee Weapon Datajack Build | -11 -10 -10 -9 -9 -9 ------- Run | Yrd Mat Min Mat Min Exi Slots Evolved 2 | . . . 2 . . Power . | . . . . . . Propulsion 1 | . . . 1 . . Utility . | . . . . . . Weapon 1 | . . . 1 . . Parts Attached 90 | . 17 7 40 2 24 Power 6 | . 2 . 3 . 1 Engine 4 | . 1 . 3 . . Core 2 | . 1 . . . 1 Reactor . | . . . . . . Propulsion 17 | . 4 . 7 . 6 Treads 11 | . 4 . 6 . 1 Leg 2 | . . . . . 2 Wheel . | . . . . . . Hover . | . . . . . . Flight 4 | . . . 1 . 3 Utility 22 | . 6 3 7 . 6 Device 15 | . 4 2 7 . 2 Storage 2 | . 1 1 . . . Processor 2 | . 1 . . . 1 Hackware . | . . . . . . Protection 3 | . . . . . 3 Artifact . | . . . . . . Weapon 45 | . 5 4 23 2 11 Energy Gun 3 | . 1 1 1 . . Energy Cannon 8 | . 2 1 5 . . Ballistic Gun 19 | . 2 . 9 1 7 Ballistic Cannon 1 | . . 1 . . . Launcher 9 | . . 1 5 . 3 Special Weapon 2 | . . . 1 1 . Impact Weapon . | . . . . . . Slashing Weapon . | . . . . . . Piercing Weapon . | . . . . . . Special Melee Weapon 3 | . . . 2 . 1 Unidentified Prototypes 1 | . . . 1 . . Parts Lost 17 | . 1 1 2 . 13 Power 2 | . 1 . . . 1 Propulsion 2 | . . . 1 . 1 Utility 5 | . . . . . 5 Weapon 8 | . . 1 1 . 6 Highest Loss Streak 4 | . 1 1 1 . 4 To Critical Strikes 4 | . . . . . 4 Average Slot Usage (%) 98 | . 98 100 99 100 94 Engine 10 | . 6 14 11 11 10 Core 1 | . 7 . . . . Treads 29 | . 28 28 32 33 25 Leg 1 | . . . . . 7 Device 11 | . 12 14 11 11 10 Storage 11 | . 14 14 11 11 7 Energy Cannon 9 | . 22 19 5 . . Ballistic Gun 14 | . 4 . 16 32 25 Ballistic Cannon 4 | . . 7 8 . . Naked Turns . | . . . . . . Heaviest Build 103 | 11 32 92 99 99 103 Greatest Support 63 | 20 40 40 63 63 63 Greatest Overweight (x) 8 | . . 2 1 1 8 Average Overweight (x) . | . . 1 1 1 . Largest Inventory Capacity 25 | . 15 25 25 25 25 Average Capacity 21 | . 14 23 25 25 18 Most Carried 25 | . 15 16 25 25 25 Average Carried 18 | . 11 15 23 25 15 Final Capacity 25 | 8 15 25 25 25 5 Final Carried 25 | 6 15 16 25 25 5 Class Distribution -------------------- 42% | Mutant 39% | Gunner 9% | Scavenger-Gunner 4% | Scavenger-Mutant 4% | Tank Dominant Class ---------------- Mutant | -10/Materials Mutant | -10/Mines Gunner | -9/Materials Gunner | -9/Mines Gunner | -9/Exiles Resources | -11 -10 -10 -9 -9 -9 ----------- Run | Yrd Mat Min Mat Min Exi Matter Collected 2432 | 162 512 170 1033 50 505 Remotely . | . . . . . . Salvage Created 3092 | . 821 171 1980 10 110 Parts 191 | . 51 12 125 . 3 Haulers Intercepted 7 | . 2 . 5 . . Recyclers Shooed 2 | . 2 . . . . Parts Field Recycled . | . . . . . . Retrieved Matter . | . . . . . . Parts Self-Destructed . | . . . . . . Prevented . | . . . . . . Kills | -11 -10 -10 -9 -9 -9 ------- Run | Yrd Mat Min Mat Min Exi Combat Hostiles Destroyed 64 | . 15 5 36 2 6 Guns 23 | . 4 1 11 2 5 Cannons 25 | . 11 2 12 . . AOE 15 | . . 2 12 . 1 Classes Destroyed 14 | . 7 . 6 1 . Worker 7 | . 1 2 4 . . Builder 2 | . . . 2 . . Tunneler 1 | . . . 1 . . Hauler 7 | . 2 . 5 . . Recycler 6 | . 1 . 5 . . Mechanic 1 | . . . 1 . . Operator 1 | . 1 . . . . Watcher 7 | . 3 . 4 . . Swarmer 12 | . 3 3 6 . . Grunt 30 | . 12 2 16 . . Duelist 3 | . . . 3 . . Protector 1 | . . . 1 . . Sentry 10 | . . . 10 . . Assembled 7 | . . . . 2 5 Best Kill Streak 8 | . 4 3 8 1 5 Combat Bots Only 5 | . 4 3 5 1 5 Max Kills in Single Turn 4 | . 1 2 4 1 2 Gunslinging . | . . . . . . Exploded 2 | . . 2 2 . 1 Melee . | . . . . . . Uniques/NPCs Destroyed 1 | . . . . . 1 8R-AWN (-9/Exiles) Combat | -11 -10 -10 -9 -9 -9 -------- Run | Yrd Mat Min Mat Min Exi Hostile Shots Fired 288 | . 44 22 104 9 109 Missed 64 | . 13 4 26 2 19 Damage Taken 3485 | . 626 167 985 103 1604 Core 493 | . 47 29 113 . 304 Absorbed by Shields 324 | . . . . . 324 Regen/Repaired (Parts) 262 | . 98 . 164 . . Core Remaining (%) 84 | 100 . 69 . . . Volleys Fired 237 | . 55 15 98 9 60 Largest 3 | . 2 2 3 3 3 Hottest 135 | . 120 120 135 100 82 Shots Fired 553 | . 109 29 260 21 134 Gun 306 | . 44 2 116 18 126 Cannon 221 | . 65 26 130 . . Launcher 22 | . . 1 13 . 8 Special 4 | . . . 1 3 . Kinetic 357 | . 40 7 166 18 126 Thermal 157 | . 69 19 66 3 . Explosive 22 | . . 1 13 . 8 Electromagnetic 17 | . . 2 15 . . Robot Hit Streak 14 | . 10 6 12 3 14 Robot Miss Streak 4 | . 3 3 4 2 3 Penetration Max . | . . . . . . Secondary Targets 3 | . 1 . . . 2 Max Gunslinging Chain 1 | . 1 . . . 1 Shots Hit Robots 341 | . 66 16 151 8 100 Core Hits 151 | . 29 7 84 3 28 Critical Kills 2 | . . 1 1 . . Critical Parts Destroyed 1 | . . . 1 . . Critical Strikes 3 | . . 1 2 . . Meltdown 2 | . . 1 1 . . Destroy 1 | . . . 1 . . Melee Attacks 7 | . . . 3 . 4 Impact . | . . . . . . Slashing . | . . . . . . Piercing . | . . . . . . Sneak Attacks 7 | . . . 3 . 4 Combat Hostiles . | . . . . . . Follow-up Attacks . | . . . . . . Damage Inflicted 7618 | . 1080 410 4023 120 1985 Guns 2891 | . 321 10 947 120 1493 Cannons 2501 | . 759 260 1482 . . Explosions 2185 | . . 126 1567 . 492 Melee . | . . . . . . Ramming 41 | . . 14 27 . . Kinetic 3480 | . 278 34 1555 120 1493 Thermal 1799 | . 802 226 771 . . Explosive 2185 | . . 126 1567 . 492 Electromagnetic 113 | . . 10 103 . . Impact . | . . . . . . Slashing . | . . . . . . Piercing . | . . . . . . Highest Corruption 2 | . 2 2 . . . Average Corruption 1 | . 1 2 . . . Corruption Purged . | . . . . . . Corruption Blocked . | . . . . . . Effects 30 | . 4 26 . . . Message Errors 10 | . 2 8 . . . Matter Fused 11 | . 1 10 . . . Heat Flow Errors 1 | . . 1 . . . Energy Discharges 4 | . . 4 . . . Data Loss (minor) 3 | . . 3 . . . Misfires 1 | . 1 . . . . Overload Shots . | . . . . . . Overflow Damage 81 | . 13 . 52 . 16 Projectiles 29 | . 13 . 16 . . Explosions 52 | . . . 36 . 16 Melee . | . . . . . . Knockbacks 2 | . . . 2 . . Impact . | . . . . . . Kinetic 2 | . . . 2 . . Secondary . | . . . . . . Self-Inflicted Damage 73 | . . . 41 . 32 Shots 2 | . . . 1 . 1 Rammed 2 | . . 1 1 . . Targets Rammed 2 | . . 1 1 . . Kicked . | . . . . . . Crushed . | . . . . . . Highest Temperature 347 | . 198 190 347 36 126 Average Temperature 59 | . 59 86 66 11 39 Received Heat Transfer 579 | . 207 24 348 . . Effects 1 | . . . 1 . . Matter Decay 1 | . . . 1 . . Siege Activations . | . . . . . . Robots Corrupted . | . . . . . . Combat Hostiles . | . . . . . . Parts Fried . | . . . . . . Impact Corruptions . | . . . . . . Robots Melted 2 | . . 1 1 . . Combat Hostiles 1 | . . . 1 . . Parts Melted 7 | . 3 2 2 . . Heat Transferred 3800 | . 1691 481 1628 . . Parts Sabotaged . | . . . . . . Parts Stolen . | . . . . . . Parts Stripped . | . . . . . . Power Chain Reactions . | . . . . . . Alert | -11 -10 -10 -9 -9 -9 ------- Run | Yrd Mat Min Mat Min Exi Peak Influence 813 | . 278 69 813 316 . Initial 316 | . . 27 . 316 . Average 255 | . 117 19 439 296 . Maximum Alert Level 3 | . 1 . 3 1 . Low Security (%) 51 | . 81 100 17 5 . Level 1 16 | . 18 . 14 94 . Level 2 28 | . . . 61 . . Level 3 3 | . . . 7 . . Level 4 . | . . . . . . Level 5 . | . . . . . . High Security . | . . . . . . Max Security . | . . . . . . Squads Dispatched 10 | . 6 . 4 . . Investigation 8 | . 5 . 3 . . Extermination . | . . . . . . Reinforcement 1 | . 1 . . . . Assault 1 | . . . 1 . . Garrison . | . . . . . . Intercept . | . . . . . . Searches Triggered . | . . . . . . Construction Impeded . | . . . . . . Haulers Reinforced . | . . . . . . Active Scanning Responses . | . . . . . . Cargo Convoy Interrupts . | . . . . . . Stealth | -11 -10 -10 -9 -9 -9 --------- Run | Yrd Mat Min Mat Min Exi Distress Signals 7 | . . . 7 . . Communications Jammed . | . . . . . . Distress Signals . | . . . . . . Times Spotted 118 | . 28 5 56 4 25 Peak Tracking Total 9 | . 5 3 6 4 9 Tactical Retreats 11 | . 2 . 4 1 4 Traps | -11 -10 -10 -9 -9 -9 ------- Run | Yrd Mat Min Mat Min Exi Traps Triggered 6 | . 6 . . . . Indirectly . | . . . . . . Trap Hack Attempts . | . . . . . . Triggered . | . . . . . . Disarmed . | . . . . . . Reprogrammed . | . . . . . . Reused . | . . . . . . Traps Extracted . | . . . . . . Installed . | . . . . . . Triggered . | . . . . . . Machines | -11 -10 -10 -9 -9 -9 ---------- Run | Yrd Mat Min Mat Min Exi Machines Disabled 12 | . 1 . 6 . 5 Max in Single Turn 1 | . 1 . 1 . 1 Machines Repaired . | . . . . . . Machines Dismantled . | . . . . . . Machines Sabotaged . | . . . . . . Overloaded Fab Kills . | . . . . . . Hacking | -11 -10 -10 -9 -9 -9 --------- Run | Yrd Mat Min Mat Min Exi Machines Accessed 24 | . 9 . 14 . 1 Terminals 15 | . 6 . 9 . . Fabricators . | . . . . . . Repair Stations 3 | . 1 . 2 . . Recycling Units 3 | . 2 . 1 . . Scanalyzers 2 | . . . 2 . . Garrison Access . | . . . . . . Total Hacks 62 | . 18 . 43 . 1 Successful 33 | . 7 . 25 . 1 Failed 29 | . 11 . 18 . . Catastrophic 7 | . 1 . 6 . . Database Lockouts . | . . . . . . Manual 30 | . 10 . 19 . 1 Terminals 39 | . 13 . 26 . . Fabricators . | . . . . . . Repair Stations 11 | . 3 . 8 . . Recycling Units 6 | . 2 . 4 . . Scanalyzers 5 | . . . 5 . . Garrison Access . | . . . . . . Terminal Hacks 9 | . 2 . 6 . 1 Record 1 | . 1 . . . . Part Schematic 1 | . . . 1 . . Robot Analysis 1 | . . . 1 . . Branch Access Points 1 | . 1 . . . . Patrol Status 1 | . . . 1 . . Hauler Manifests 1 | . . . 1 . . Zone Layout 2 | . . . 2 . . Derelict Proto ID Bank 1 | . . . . . 1 Fabricator Hacks . | . . . . . . Repair Station Hacks 9 | . 2 . 7 . . Scan Component 5 | . 1 . 4 . . Repair 4 | . 1 . 3 . . Recycling Unit Hacks 3 | . . . 3 . . Process 1 | . . . 1 . . Retrieve Matter 2 | . . . 2 . . Scanalyzer 4 | . . . 4 . . Insert Component 2 | . . . 2 . . Analyze 2 | . . . 2 . . Garrison Access Hacks . | . . . . . . Unauthorized Hacks 8 | . 3 . 5 . . Terminals 6 | . 1 . 5 . . Assimilate 1 | . . . 1 . . Botnet 3 | . . . 3 . . Operators 2 | . 1 . 1 . . Fabricators . | . . . . . . Repair Stations . | . . . . . . Recycling Units 2 | . 2 . . . . Tunnel 2 | . 2 . . . . Scanalyzers . | . . . . . . Garrison Access . | . . . . . . Data Cores Recovered . | . . . . . . Used . | . . . . . . Hacking Detections 20 | . 6 . 14 . . Full Trace Events 5 | . 2 . 3 . . Feedback Events . | . . . . . . Feedback Blocked . | . . . . . . Robot Schematics Acquired . | . . . . . . Robots Built . | . . . . . . Authchips . | . . . . . . Time . | . . . . . . Total Robot Build Rating . | . . . . . . Part Schematics Acquired 3 | . . . 3 . . Parts Built . | . . . . . . Authchips . | . . . . . . Time . | . . . . . . Total Part Build Rating . | . . . . . . Parts Repaired 4 | . 1 . 3 . . Time 110 | . 26 . 84 . . Parts Recycled . | . . . . . . Recycled Matter 144 | . . . 144 . . Retrieved Matter 144 | . . . 144 . . Retrieved Components . | . . . . . . Parts Scanalyzed 2 | . . . 2 . . Part Schematics Acquired 2 | . . . 2 . . Parts Damaged . | . . . . . . Bothacking | -11 -10 -10 -9 -9 -9 ------------ Run | Yrd Mat Min Mat Min Exi Used RIF Installer . | . . . . . . Robots Hacked 6 | . . . 2 . 4 Non-combat 5 | . . . 2 . 3 Combat 1 | . . . . . 1 Robot Hacks Applied 7 | . . . 3 . 4 parse_system 4 | . . . . . 4 find_recycling 2 | . . . 2 . . find_station 1 | . . . 1 . . Relay Couplers Released . | . . . . . . Fabnet Peak Effective % . | . . . . . . Robots Rewired . | . . . . . . Allies Hacked . | . . . . . . Hacks Repelled . | . . . . . . Allies | -11 -10 -10 -9 -9 -9 -------- Run | Yrd Mat Min Mat Min Exi Total Allies 1 | . . . 1 . . Largest Group 1 | . . . 1 1 . Highest-Rated Group 10 | . . . 10 10 . Highest-Rated Ally 10 | . . . 10 10 . Total Orders . | . . . . . . Ally Attacks . | . . . . . . Total Damage . | . . . . . . Kills . | . . . . . . Allies Corrupted . | . . . . . . Allies Melted . | . . . . . . Intel | -11 -10 -10 -9 -9 -9 ------- Run | Yrd Mat Min Mat Min Exi Robot Analysis Total 1 | . . . 1 . . Derelict Logs Recovered 3 | . . 2 . 1 . Drone Launches . | . . . . . . Drone Recoveries . | . . . . . . Exploration | -11 -10 -10 -9 -9 -9 ------------- Run | Yrd Mat Min Mat Min Exi Turns Passed 9760 | . 1744 1819 3548 423 2226 Spaces Moved 3571 | 1 722 554 1102 151 1041 Core 1 | . . . . . 1 Treads 3211 | . 722 554 1102 151 682 Legs 324 | 1 . . . . 323 Wheels . | . . . . . . Hover . | . . . . . . Flight 35 | . . . . . 35 Fastest Speed 34 | 120 160 160 240 240 34 Average Speed 214 | 120 160 282 240 240 184 Slowest Speed 450 | 120 160 320 240 240 450 Overloaded Moves . | . . . . . . Propulsion Burnouts . | . . . . . . Robots Hopped . | . . . . . . Cave-ins Triggered . | . . . . . . Exploration Rate (%) 64 | 2 91 97 90 35 71 Regions Visited 5 Branch Regions 3 Pre-discovered Areas 2 | . 2 . . . . Known Exits Taken 3 | . 1 1 1 . . Unknown Exits Taken 2 | 1 . . . 1 . Scrap Searched 2 | . . 2 . . . Spaces Dug 48 | . . . 47 1 . Terrain Destroyed 125 | . . 9 96 3 17 Melee . | . . . . . . Projectile 4 | . . . 1 3 . AOE 121 | . . 9 95 . 17 Terrain Rammed . | . . . . . . Walls Destroyed . | . . . . . . Machines Disabled . | . . . . . . Actions | -11 -10 -10 -9 -9 -9 --------- Run | Yrd Mat Min Mat Min Exi Total 5230 | . 1201 778 1804 190 1257 Wait 1155 | . 380 199 502 29 45 Move 3566 | . 721 553 1101 150 1041 Hop . | . . . . . . Pick Up 88 | . 17 2 32 . 37 Fast Attach 14 | . 4 . 4 . 6 Attach 19 | . 2 1 5 . 11 Detach 6 | . 1 . 1 . 4 Swap 57 | . 11 6 31 2 7 Drop 79 | . 10 1 26 . 42 Fire 237 | . 55 15 98 9 60 Melee 7 | . . . 3 . 4 Ram . | . . . . . . Kick . | . . . . . . Crush 2 | . . 1 1 . . Escape Stasis . | . . . . . . Rewire . | . . . . . . Trap . | . . . . . . Miscellaneous . | . . . . . . Route ------- -11/Scrapyard -10/Materials (discovered 4 exits: *Mat x3 / *Min) -10/Mines (discovered 3 exits: *Mat x2 / [*Sub]) -9/Materials (discovered 5 exits: *Mat x3 / *Min x2) -9/Mines (discovered 2 exits: *Mat / *Exi) -9/Exiles (discovered 1 exit: [*Min]) History --------- Turn | Location | Event 1 | -11/Scrapyard | Discovered new exit (range 0) 1 | -11/Scrapyard | Entered Materials 229 | -10/Materials | Discovered new exit (range 15) 284 | -10/Materials | Repaired Assault Rifle 322 | -10/Materials | Build established: Mutant 334 | -10/Materials | Identified exit to Materials 1025 | -10/Materials | Identified exit to Mines 1076 | -10/Materials | Discovered exit to Materials (range 16) 1398 | -10/Materials | Discovered exit to Materials (range 8) 1745 | -10/Materials | Entered Mines 1771 | -10/Mines | Discovered exit to Materials (range 9) 1851 | -10/Mines | Learned location of 2 exits from Materials 1896 | -10/Mines | Discovered exit to Materials (range 9) 2120 | -10/Mines | Received a Rocket Launcher from a helpful Derelict 2336 | -10/Mines | Discovered new exit (range 5) 3564 | -10/Mines | Entered Materials 3564 | -9/Materials | Evolved 2 slots: Propulsion x1, Weapon x1 3565 | -9/Materials | Identified exit to Mines 3565 | -9/Materials | Identified exit to Materials 3861 | -9/Materials | Build established: Gunner 4642 | -9/Materials | Discovered exit to Mines (range 12) 5584 | -9/Materials | Build established: Scavenger-Gunner 5688 | -9/Materials | Repaired Hvy. Assault Rifle 6364 | -9/Materials | First assault squad dispatched 6558 | -9/Materials | Discovered exit to Materials (range 13) 6573 | -9/Materials | Build established: Gunner 6958 | -9/Materials | Discovered exit to Materials (range 4) 6968 | -9/Materials | Repaired Lgt. Treads 7004 | -9/Materials | Repaired Lgt. Treads 7112 | -9/Materials | Entered Mines 7112 | -9/Mines | Accompanied by 1 ally 7113 | -9/Mines | Assembled infested the area 7118 | -9/Mines | Assisted by a Guerilla fighting off Assembled 7185 | -9/Mines | Discovered exit to Materials (range 14) 7384 | -9/Mines | Learned 8 Materials zone layouts 7410 | -9/Mines | Deemed a non-threat by the Exiles lab entrance 7410 | -9/Mines | Discovered new exit (range 5) 7535 | -9/Mines | Entered Exiles 7595 | -9/Exiles | Met 8R-AWN 7634 | -9/Exiles | Met EX-HEX 7727 | -9/Exiles | Met EX-DEC 7809 | -9/Exiles | Discovered new exit (range 14) 8148 | -9/Exiles | Met EX-BIN 8179 | -9/Exiles | Aligned with FarCom system 8182 | -9/Exiles | Given EX-Vault access code 8242 | -9/Exiles | Opened EX-Vault 8290 | -9/Exiles | Found Potential Leg 8293 | -9/Exiles | Found Potential Leg 8344 | -9/Exiles | Warned to stay clear of 0b10 Research branches 8639 | -9/Exiles | Build established: Scavenger-Mutant 9295 | -9/Exiles | Attacked by the Exiles 9322 | -9/Exiles | Build established: Tank 9469 | -9/Exiles | Lost 3 parts (1n1u1w) 9485 | -9/Exiles | Core integrity fell below 50% 9523 | -9/Exiles | Destroyed 8R-AWN 9549 | -9/Exiles | Lost 3 parts (3u) 9549 | -9/Exiles | Found Exp. Targeting Computer 9628 | -9/Exiles | Core integrity fell below 20% 9656 | -9/Exiles | Lost 4 parts (1p1u2w) 9761 | -9/Exiles | Destroyed by DAS Turret with DAS Cannon Last Messages --------------- 09523_ 8R-AWN destroyed. 09523_ Machine disabled. 09528_ Acquired 100 matter. 09533_ Acquired Adv. Weapon Cycler. 09542_ Acquired Imp. Grenade Launcher. 09549_ Acquired Exp. Targeting Computer. 09554_ Extracted 61 matter. 09621_ Machine disabled. 09622_ Hardlight Generator destroyed. 09625_ Autogun destroyed. 09625_ Imp. Grenade Launcher destroyed. 09625_ Deuterium Engine destroyed. 09672_ Acquired Imp. Grenade Launcher. 09680_ Acquired Rnf. Fission Core. 09687_ Acquired Hvy. EM Pulse Gun. 09703_ Hvy. Assault Rifle destroyed. 09703_ Knocked back. 09705_ Acquired 5 matter. 09737_ Dropped Rnf. Fission Core. 09737_ Acquired Imp. Flight Unit. Map ----- +----------------------------------------------------+ | ??????????????????????????????????????????"""""?# | | ??????????????????????????????????????????""" ## | | #???????????????????????????????????????#""X" | | #???????????????????????????????????????#" | | #???????????????????????????????????????#" ## | | ###?????????????????????????????????????#""""""?# | | #???????????????????????????????????????"###??# | | *##?????????????????????????????????????????????# | | #??????????????????????????????????????????????# | | ##????????????????????????????????????????????## | | #????????????#######?????????????????????????#" | | #######??????#!!! "#?????????????????????????#" | | #""##?????# "#?????????????????????????#" | | #?????# "#?????????????????????????#" | | ##???## ""#???????????######????????#" | | #####" "#??????????? """#???????#" | | # ##" ""#??????????#"" """#???????## | | ## # ###??????????#"" #????????# | | ?#"## # ##?????????#"" ?????????#" | | ?####### #?????????#"" "#????????#" | | ???????### ##????????# ""?????????#" | | ?########" ## #?????????"" "?????????##" | | ?# !!""""" ###?????????# #????????##"" | | ?#! = ## #####???### ###?######"" | | ?#! ! ==! # # %"""#####X# #"###""""""" | | ?#!! = *!### @ """""" " "" | | ?# ! "##?### # " """ " | | #"""###"##"#????## # " " | | # ##? #####?????##### | | #???# #??????????????### % % | | ???# #?????????????????## | | ??# #???????????????????## | | ?# #?????????????????????## % | | # #??????????????????????# """" | | #???????????????????????# ##### | | ?????????????????????????# ""##???? | | ????????????????????????##"" """##????? | | ????????????????????????#"" """##?????? | | ????????????????????????#" ""#??????? | | ????????????????????????# ########? | | ????????????????????????#" ## ## | | ????????????????????????#"" " | | ????????????????????????## | | ?????????????????????????# " | | ?????????????????????????## | | ??????????????????????????#" " | | ??????????????????????????#"""" ""## | | ??????????????????????????#"" ""#### | | ??????????????????????????#" """"##??# | | ??????????????????????????#""" """#??## | +----------------------------------------------------+ Best States ------------- Heat Dissipation 42 Energy Generation 19 Energy Capacity 310 Matter Stores 300 Matter Capacity 300 Sight Range 16 Terrain Scan Density 10 Armor Coverage 150 Evasion (%) 63 Targeting Accuracy 12 Recoil Reduction 3 Item Schematics ----------------- Hacking Suite | -9/Materials | Scanalyzed Med. Storage Unit | -9/Materials | Scanalyzed Trap Extractor | -9/Materials | Hacked Robot Schematics ------------------ None Fabricated ------------ Nothing Alien Tech Used ----------------- None Achievements -------------- None Challenges ------------ None Game ------ Seed MatterXenonTendrils Manual? 0 Play Time 01:19:33 Cumulative 159.5 hours Start 2024.07.17 @ 03:13:46 End 2024.07.18 @ 12:15:08 Sessions 4 Manual Loads 0 Difficulty Rogue Special Mode None Game No. 42 Rogue 42 Adventurer 0 Explorer 0 Win Type - Total 6 Types 4/0/1/0/0/1/0/0/0 Lore% 64 Gallery% 76 Achievement% 66 Wizard Run 0 Options --------- Layout 2 ASCII 0 Keyboard 1 Movement Vi Keybinds 0 Fullscreen 1 Font 24/Smallcaps Map View 50x44 Zoom Use 0% Tactical HUD 1 Map Filters NONE Filters NONE Steam 1 RUN: 9c3b73ef-8f56-4af6-8fb5-0c28be0585f0